[Event "56th Biel GMT Classical 2023"]
[White "Erigaisi Arjun"]
[Black "Navara,David"]
[Site "Biel"]
[Round "2.2"]
[Annotator "TA"]
[Result "1/2-1/2"]
[Date "2023.07.19"]
[WhiteElo "2710"]
[BlackElo "2689"]
[PlyCount "118"]
[TimeControl "60"]

{[%evp 12,118,13,7,16,10,14,12,14,4,3,0,12,0,10,0,0,0,0,0,0,0,14,0,0,0,0,0,0,-10,112,107,114,113,272,313,302,308,312,302,313,295,280,308,293,267,307,295,272,271,322,305,432,409,409,-208,-208,-208,0,-208,-208,-208,-208,-208,-208,-208,-208,-208,-208,-208,-208,-208,-208,-208,-208,-208,0,0,0,0,0,-156,-22,-77,-8,-9,-36,-108,0,0,0,0,0,0,0,0,0,0,0,0,0,0,0,0,0,0,0,-29978,-29977]} 1. e4 {[%emt 0:0:4]} c5 {[%emt 0:0:3]} 2. Nf3 {[%emt 0:0:5]} d6 {[%emt 0:0:4]} 3. d4 {[%emt 0:0:4]} cxd4 {[%emt 0:0:3]} 4. Nxd4 {[%emt 0:0:4]} Nf6 {[%emt 0:0:6]} 5. Nc3 {[%emt 0:0:4]} a6 {[%emt 0:0:5]} 6. Bg5 {[%emt 0:0:4]} Nbd7 {[%emt 0:0:4]} 7. Bc4 {[%emt 0:0:5]} Qb6 {[%emt 0:3:57] B94: Sicilian Najdorf: 6 Bg5 Nbd7.} 8. Bb3 {[%emt 0:0:12]} e6 $1 {[%emt 0:0:29]} 9. Bxf6 {[%emt 0:0:6]} Nxf6 {[%emt 0:0:6] The position is equal.} 10. Qd2 {[%emt 0:0:5] 10.f4 is not played anymore.} Nd7 {[%emt 0:3:21]} 11. O-O-O {[%emt 0:0:9]} Nc5 {[%emt 0:0:10]} 12. Rhe1 {[%emt 0:0:8][%cal Od4f5] [#]} g6 $146 {[%emt 0:8:27] Prevents Nf5.} ({Predecessor:} 12... Bd7 13. Nf5 O-O-O 14. Nxd6+ Bxd6 15. Qxd6 Nxb3+ 16. axb3 Qxf2 17. Rf1 Qe3+ 18. Kb1 Bb5 19. Nxb5 Rxd6 20. Nxd6+ {0-1 Celik,H (2433)-Kulaots,K (2525) Bassano del Grappa Vergani Cup 2023 (7)} )13. e5 {[%emt 0:0:21]} Nxb3+ {[%emt 0:20:34]} 14. axb3 {[%emt 0:0:7] And now exd6 would win.} d5 {[%emt 0:4:5]} 15. Qf4 {[%emt 0:0:7] Black must now prevent Qf6.} Be7 {[%emt 0:9:3] Dodges Qf6} 16. h4 {[%emt 0:0:8]} h6 {[%emt 0:18:32]} 17. Kb1 {[%emt 0:0:5]} Bd7 {[%emt 0:0:16]} 18. h5 {[%emt 0:2:51]} g5 $1 {[%emt 0:0:56]} 19. Qf3 {[%emt 0:0:6]} a5 {[%emt 0:7:9]} 20. Qd3 {[%emt 0:22:21][%cal Oc3d5]} Bc5 {[%emt 0:6:46] [#]} (20... Qa6 $11 )21. Nxd5 $1 $16 {[%emt 0:8:42][%mdl 512] White is more active.} exd5 {[%emt 0:0:56]} 22. e6 $1 $40 {[%emt 0:0:4][%mdl 128] White is out for blood.} Bxe6 {[%emt 0:11:6]} (22... fxe6 $2 23. Qg6+ Kd8 24. Qf6+ Kc7 25. Nxe6+ Bxe6 26. Rxe6 $18 )(22... Bxd4 $16 23. exd7+ (23. Qxd4 Qxd4 24. exd7+ Kxd7 $16 )Kxd7 )23. Nxe6 $18 {[%emt 0:0:21]} fxe6 {[%emt 0:0:4]} 24. Qxd5 {[%emt 0:1:48]} Kf7 {[%emt 0:3:33]} (24... Bxf2 25. Rxe6+ Kf8 26. Qf5+ Kg8 27. Rd7 )25. Qd7+ {[%emt 0:0:52]} Be7 {[%emt 0:4:28] ...Rhd8 would be deadly.} 26. Rd3 {[%emt 0:1:7] Intending Rf3+ and mate.} Rh7 {[%emt 0:0:38]} 27. Rf3+ $1 {[%emt 0:10:22]} Kg8 {[%emt 0:0:8] Threatens to win with ...Rd8.} 28. Rxe6 {[%emt 0:0:8]} Rd8 {[%emt 0:6:11]} 29. Qxe7 {[%emt 0:0:13]} Rxe7 {[%emt 0:0:14]} 30. Rxb6 {[%emt 0:0:5][%mdl 4096] Endgame KRR-KRR} Rd1+ {[%emt 0:0:11]} 31. Ka2 {[%emt 0:0:4]} Ree1 {[%emt 0:0:6]} (31... g4 {was worth a try.} 32. Rf4 Ree1 33. Rg6+ (33. Rxg4+ Kf8 $11 )Kh8 34. Rf8+ (34. Rfxg4 $2 Ra1# )(34. Rxh6+ Kg7 $18 )Kh7 35. Rf7+ (35. Rxg4 $2 Ra1# )Kh8 )32. b4 {[%emt 0:0:16]} (32. Rxh6 $2 Ra1# )a4 {[%emt 0:0:5][%csl Ge1][%cal Rd1a1]} 33. b3 $4 {[%emt 0:0:22][%mdl 8192]} (33. Rxh6 $2 Ra1# )(33. Rg6+ $18 {is the narrow road to win.} Kh7 34. Rf7+ Kh8 35. b3 (35. Rxh6+ $2 Kg8 $19 )Ra1+ 36. Kb2 a3+ 37. Kc3 )Ra1+ $19 {[%emt 0:0:36][%mdl 1024] Black has strong compensation.} 34. Kb2 {[%emt 0:0:5]} a3+ {[%emt 0:0:5]} 35. Kc3 {[%emt 0:0:4]} Re7 $1 {[%emt 0:2:32]} 36. Rg6+ {[%emt 0:5:39]} (36. Rxh6 $2 {too greedy.} Rd1 37. Rg6+ Kh7 $19 )Kh7 {[%emt 0:1:40]} 37. Rff6 {[%emt 0:0:49]} Rc7+ {[%emt 0:1:3]} 38. Kd2 {[%emt 0:0:43]} a2 $1 {[%emt 0:0:2][%cal Oa1d1] ...Rd1+! is the strong threat.} 39. Rxh6+ {[%emt 0:0:7]} Kg8 {[%emt 0:0:7]} 40. Rhg6+ {[%emt 0:0:0] [#]} Rg7 $1 {[%emt 0:0:0]} 41. Rxg7+ {[%emt 0:8:9]} Kxg7 {[%emt 0:0:43] KR-KR} 42. Rg6+ {[%emt 0:8:41]} Kh7 {[%emt 0:14:48]} 43. Rxg5 {[%emt 0:1:9] Hoping for Ra5.} Rb1 $2 {[%emt 0:14:38]} (43... Rd1+ $19 44. Kxd1 a1=Q+ 45. Ke2 Qc3 )44. Ra5 $11 {[%emt 0:0:11]} a1=Q {[%emt 0:0:6]} 45. Rxa1 {[%emt 0:0:4]} Rxa1 {[%emt 0:0:6] KR-KP} 46. c4 $2 {[%emt 0:13:23]} (46. Ke3 $1 $11 )Kh6 {[%emt 0:4:54]} (46... Rh1 $17 47. Ke3 Rxh5 )47. Ke3 {[%emt 0:0:50] [#]} (47. Kc3 $11 )Kxh5 {[%emt 0:3:40]} ({Black should try} 47... Rg1 $1 $17 {[%cal Rg1g2]} 48. b5 Rxg2 )48. Kd4 $1 {[%emt 0:0:6]} Kg6 {[%emt 0:7:10]} 49. b5 {[%emt 0:0:18]} Rb1 {[%emt 0:3:23]} (49... Ra2 $17 50. Kd5 Rb2 )50. Kc5 $1 {[%emt 0:0:11]} Rxb3 {[%emt 0:0:9]} 51. Kb6 {[%emt 0:0:5]} Rc3 {[%emt 0:6:7]} 52. Kxb7 {[%emt 0:1:37]} Kf7 {[%emt 0:1:32]} 53. b6 {[%emt 0:0:44]} Ke6 {[%emt 0:1:38]} (53... Ke7 $5 54. Kc6 $8 Rxc4+ 55. Kd5 (55. Kb5 Rc2 $15 )Rc1 $11 )54. Kc7 {[%emt 0:2:5]} Rxc4+ {[%emt 0:0:3]} 55. Kd8 $1 {[%emt 0:0:5]} Rb4 {[%emt 0:0:4]} 56. Kc7 {[%emt 0:0:4]} Rc4+ {[%emt 0:0:2]} 57. Kd8 $1 {[%emt 0:0:4]} Rd4+ {[%emt 0:0:6]} 58. Kc7 $1 {[%emt 0:0:17]} Rc4+ {[%emt 0:0:5]} 59. Kb7 $2 {[%emt 0:0:19][%mdl 8192]} (59. Kd8 $11 )Ke7 {[%emt 0:0:2][%mdl 32768] What a bad dream for White.   Weighted Error Value: White=0.28 (precise) /Black=0.26 (precise) . An unexpected result.} 1/2-1/2

[Event "56th Biel GMT Classical 2023"]
[White "Moussard,Jules"]
[Black "Yu,Yangyi"]
[Site "Biel"]
[Round "2.3"]
[Annotator "TA"]
[Result "1/2-1/2"]
[Date "2023.07.19"]
[WhiteElo "2654"]
[BlackElo "2735"]
[PlyCount "88"]
[TimeControl "60"]

{[%evp 16,88,27,33,42,42,36,40,29,31,36,50,54,45,56,52,41,24,26,31,30,0,27,18,48,53,26,41,58,29,87,19,23,19,63,63,87,70,105,115,101,56,56,58,67,68,131,19,17,14,13,22,20,26,26,31,23,16,66,66,69,66,66,62,66,66,66,66,66,52,52,52,59,66,66]} 1. e4 {[%emt 0:0:4]} c5 {[%emt 0:0:7]} 2. Nf3 {[%emt 0:0:6]} Nc6 {[%emt 0:0:17]} 3. Bb5 {[%emt 0:0:25]} d6 {[%emt 0:1:8]} 4. O-O {[%emt 0:1:22]} Bd7 {[%emt 0:0:21]} 5. Re1 {[%emt 0:0:12]} Nf6 {[%emt 0:0:21]} 6. c3 {[%emt 0:4:35][%cal Bc2c3,Bc3d4,Bd4d5][%mdl 32]} a6 {[%emt 0:0:26]} 7. Bf1 {[%emt 0:0:37]} Bg4 {[%emt 0:0:13]} 8. d4 {[%emt 0:1:27]} cxd4 {[%emt 0:0:50]} 9. cxd4 {[%emt 0:0:7]} e5 {[%emt 0:0:40] B51: Sicilian: Moscow Variation (3 Bb5+) without 3...Bd7.} 10. d5 {[%emt 0:0:24]} Nd4 {[%emt 0:0:11]} 11. Be3 {[%emt 0:0:13]} Nxf3+ {[%emt 0:0:47]} 12. gxf3 {[%emt 0:0:7]} Bd7 {[%emt 0:0:11]} 13. Nd2 {[%emt 0:11:33] 13.Nd2 scores better than 13.a4.} b5 {[%emt 0:0:30] [#] Repels Nc4} 14. a4 $1 {[%emt 0:0:45]} Be7 {[%emt 0:0:14]} 15. axb5 {[%emt 0:7:28]} axb5 {[%emt 0:0:17]} 16. Rxa8 {[%emt 0:4:12]} Qxa8 {[%emt 0:0:9]} 17. Qa1 {[%emt 0:0:57]} O-O {[%emt 0:0:26] [#]} 18. b4 $146 {[%emt 0:2:17]} (18. Rc1 $5 {[%cal Ra1a8]} )({Predecessor:} 18. Rc1 Qb7 19. Qa7 Qxa7 20. Bxa7 Ra8 21. Rc7 Kf8 22. Rb7 Bc8 23. Rb8 Rxb8 24. Bxb8 {½-½ Schilcher,A (2567)-Brodda,W (2584) GER GM08-A email 2019} )h6 {[%emt 0:12:23]} 19. Rc1 {[%emt 0:30:50][%cal Be1c1,Bc1c7,Bc7a7][%mdl 32]} Nh7 {[%emt 0:24:31]} 20. Qxa8 {[%emt 0:8:44]} Rxa8 {[%emt 0:0:7]} 21. Rc7 {[%emt 0:8:32]} Nf8 {[%emt 0:0:17]} 22. Ra7 $36 {[%emt 0:9:43][%mdl 2048] White is more active.} Rc8 {[%emt 0:2:23] [#]} (22... Rxa7 $11 23. Bxa7 Ng6 )23. f4 {[%emt 0:5:17] White is much more active.} ({White should try} 23. Nb3 $1 $16 )exf4 $1 $11 {[%emt 0:1:34]} 24. Bxf4 {[%emt 0:0:19]} Rc1 {[%emt 0:10:42]} 25. Kg2 {[%emt 0:0:59]} Rc3 {[%emt 0:19:15]} 26. Bg3 {[%emt 0:1:51]} Bg5 {[%emt 0:17:27]} 27. Nf3 {[%emt 0:2:10]} Bg4 {[%emt 0:1:12]} 28. Nxg5 {[%emt 0:1:55]} hxg5 {[%emt 0:0:2]} 29. Ra8 $1 {[%emt 0:4:14] h3 is the strong threat.} (29. Bxb5 Bf3+ 30. Kh3 f6 31. Bxd6 Ng6 $17 )(29. Bxd6 Bh3+ 30. Kh1 Rc1 )f5 {[%emt 0:2:14]} 30. exf5 {[%emt 0:0:5]} (30. Bxd6 {gets mated.} Bh3+ 31. Kh1 Rc1 32. Rxf8+ Kh7 )(30. Bxb5 $2 f4 31. Ra1 Bf3+ 32. Kf1 fxg3 33. fxg3 Bxe4 $19 )Bxf5 {[%emt 0:0:17]} ({Black should play} 30... Bf3+ $14 31. Kh3 Kf7 )31. h3 {[%emt 0:0:42]} (31. Bxd6 {leads to mate.} Bh3+ 32. Kh1 Rc1 33. Rxf8+ Kh7 )(31. f3 $16 Kf7 32. Bxb5 (32. Bxd6 Ng6 $18 ))Be4+ {[%emt 0:2:6]} 32. Kh2 {[%emt 0:0:15]} Bxd5 {[%emt 0:0:18]} 33. Rb8 {[%emt 0:1:12]} Rc1 {[%emt 0:1:15]} 34. Bg2 {[%emt 0:0:14]} Bxg2 {[%emt 0:0:40]} 35. Kxg2 {[%emt 0:0:1][%mdl 4096] Endgame KRB-KRN} Rd1 {[%emt 0:2:0]} 36. Rxb5 {[%emt 0:0:22]} Ne6 {[%emt 0:0:31]} (36... d5 $1 $11 )37. Rb6 $14 {[%emt 0:0:8] White is slightly better.} Nf4+ {[%emt 0:0:14]} 38. Kf3 {[%emt 0:2:23]} Rd4 {[%emt 0:1:5]} 39. h4 {[%emt 0:1:43]} g4+ {[%emt 0:4:19]} 40. Ke3 $1 {[%emt 0:0:0]} Rxb4 {[%emt 0:0:0][%mdl 64] Decoy} 41. Rxb4 {[%emt 0:0:14]} Nd5+ {[%emt 0:0:13]} 42. Kd4 {[%emt 0:0:31]} Nxb4 {[%emt 0:0:5]} 43. Bxd6 {[%emt 0:0:4]} Nc2+ {[%emt 0:4:52]} 44. Ke4 {[%emt 0:0:53]} g6 {[%emt 0:0:56] Weighted Error Value: White=0.13 (very precise) /Black=0.13 (very precise)} 1/2-1/2

[Event "56th Biel GMT Classical 2023"]
[White "Deac,Bogdan-Daniel"]
[Black "Keymer,Vincent"]
[Site "Biel"]
[Round "2.4"]
[Annotator "TA"]
[Result "1/2-1/2"]
[Date "2023.07.19"]
[WhiteElo "2693"]
[BlackElo "2690"]
[PlyCount "106"]
[TimeControl "60"]

{[%evp 9,106,1,11,-7,0,-6,-6,-8,9,4,20,12,11,14,22,10,22,17,45,33,46,0,0,2,0,0,0,0,25,0,0,0,0,0,7,0,0,0,14,6,28,0,20,3,14,16,14,14,19,8,12,12,21,24,26,3,2,0,0,0,8,0,8,8,8,8,8,8,9,8,22,8,18,18,22,22,22,22,22,22,22,22,22,22,22,22,22,22,22,22,22,22,22,22,22,22,22,22,22]} 1. c4 {[%emt 0:0:2]} Nf6 {[%emt 0:0:5]} 2. Nc3 {[%emt 0:0:1]} e5 {[%emt 0:0:7]} 3. e3 {[%emt 0:0:2]} Bb4 {[%emt 0:0:58]} 4. Nge2 {[%emt 0:0:1]} O-O {[%emt 0:0:33]} 5. a3 {[%emt 0:0:3]} Be7 {[%emt 0:1:42]} 6. Qb3 {[%emt 0:0:18] A22: English Opening: 1...e5 2 Nc3 Nf6.} b6 {[%emt 0:16:29]} 7. d4 {[%emt 0:11:13]} exd4 {[%emt 0:1:59]} 8. Nxd4 {[%emt 0:1:10]} Bb7 {[%emt 0:3:41]} 9. Be2 {[%emt 0:0:39] [#]} Nc6 $146 {[%emt 0:6:42]} ({Predecessor:} 9... Bxg2 10. Rg1 Bb7 11. Nf5 g6 12. Qc2 Re8 13. h4 Kf8 14. e4 Ng8 15. Nxe7 Qxe7 16. Bd3 Nc6 17. Be3 Qc5 18. Bxc5+ {1-0 Vogl,M-Grube,A Team-ch L16K1-R(4-5) 2018} )10. Nf5 {[%emt 0:13:17]} Re8 {[%emt 0:0:56]} 11. Nxe7+ {[%emt 0:2:4]} Qxe7 {[%emt 0:10:14]} 12. O-O {[%emt 0:0:59]} Rad8 {[%emt 0:6:11]} (12... Qe5 {keeps more tension.} 13. Qc2 Ne7 14. b3 Ng6 )13. Rd1 {[%emt 0:2:37]} Ne5 {[%emt 0:3:45]} 14. f3 {[%emt 0:12:37]} c6 {[%emt 0:8:45]} 15. Qa4 {[%emt 0:21:45]} a5 {[%emt 0:8:47]} 16. b4 {[%emt 0:6:34]} axb4 $1 {[%emt 0:5:50]} 17. Qxb4 {[%emt 0:0:13]} Ba6 $1 {[%emt 0:1:26]} 18. Rb1 {[%emt 0:1:3]} Qc5 {[%emt 0:7:55][%cal Ra6c4]} 19. Qxb6 {[%emt 0:5:21]} (19. Rd4 $5 {[%cal Rb4b6]} )Qxb6 {[%emt 0:0:4]} 20. Rxb6 {[%emt 0:0:2]} Bxc4 {[%emt 0:0:6]} 21. Kf2 {[%emt 0:3:37]} Ra8 {[%emt 0:5:15]} 22. e4 {[%emt 0:2:6]} Bxe2 {[%emt 0:1:9]} 23. Nxe2 {[%emt 0:5:6]} Nc4 {[%emt 0:1:4]} 24. Rb3 {[%emt 0:2:56]} h6 {[%emt 0:2:59] Against Bg5} 25. Nc3 {[%emt 0:2:43]} Red8 {[%emt 0:4:24]} 26. Rd4 {[%emt 0:2:37]} d5 {[%emt 0:0:51]} 27. exd5 {[%emt 0:1:40]} Na5 {[%emt 0:0:18] A dynamic duo of knights.} 28. Rb1 {[%emt 0:9:30]} cxd5 {[%emt 0:0:22]} 29. Rb5 {[%emt 0:0:40][%cal Rc3d5]} Rdc8 {[%emt 0:4:29]} 30. Rd3 {[%emt 0:0:56]} Ra6 {[%emt 0:6:16]} 31. g4 {[%emt 0:2:49]} Kh7 {[%emt 0:1:24]} 32. h4 {[%emt 0:2:42]} Nc4 {[%emt 0:0:34] ...Ne5 would be deadly. The position is equal.} 33. Ne2 {[%emt 0:0:8]} ({Reject} 33. Nxd5 Ne5 34. Re3 Nfxg4+ 35. fxg4 Nxg4+ 36. Kf3 Nxe3 37. Bxe3 Rxa3 $17 )Ne5 {[%emt 0:1:48]} 34. Rd1 {[%emt 0:0:27]} Rc2 {[%emt 0:1:23][%cal Of6g4]} 35. Rb2 {[%emt 0:1:19]} Rxb2 {[%emt 0:0:15]} 36. Bxb2 {[%emt 0:0:3]} Nc4 {[%emt 0:0:5][%csl LRa3,LRb2]} 37. Bxf6 {[%emt 0:0:10]} Rxf6 {[%emt 0:0:25]} 38. Rxd5 {[%emt 0:0:1]} Nxa3 $11 {[%emt 0:0:6][%mdl 4096] Endgame KRN-KRN} 39. Rc5 {[%emt 0:0:18]} Rd6 {[%emt 0:0:28]} 40. Ng3 {[%emt 0:0:0]} g6 {[%emt 0:0:0]} 41. Ne4 {[%emt 0:0:25]} Rb6 {[%emt 0:6:40]} 42. g5 {[%emt 0:1:43]} hxg5 {[%emt 0:0:27]} 43. hxg5 {[%emt 0:0:18]} Kg7 {[%emt 0:2:38]} 44. Rc8 {[%emt 0:0:7] Strongly threatening Nf6.} Nb5 {[%emt 0:0:23]} 45. Nf6 {[%emt 0:0:6]} Rxf6 $1 {[%emt 0:0:5]} 46. gxf6+ {[%emt 0:0:4]} Kxf6 {[%emt 0:0:5] KR-KN} 47. Rc6+ {[%emt 0:0:10]} Ke7 {[%emt 0:0:8]} 48. Ke3 {[%emt 0:0:5]} Nd6 {[%emt 0:0:44]} 49. Kd4 {[%emt 0:0:8]} Nf5+ {[%emt 0:0:55]} 50. Ke5 {[%emt 0:0:6]} Kf8 {[%emt 0:2:14]} 51. Kf6 {[%emt 0:2:34][%cal Rc6c8] [#]} Ne7 {[%emt 0:0:9] Against Rc8+} 52. Rc5 {[%emt 0:0:9]} Ng8+ {[%emt 0:0:3]} 53. Kg5 {[%emt 0:0:7]} Kg7 {[%emt 0:0:7] Weighted Error Value: White=0.06 (flawless) /Black=0.05 (flawless)} 1/2-1/2

[Event "56th Biel GMT Classical 2023"]
[White "Keymer,Vincent"]
[Black "Le,Quang Liem"]
[Site "Biel"]
[Round "3.1"]
[Annotator "TA"]
[Result "1-0"]
[Date "2023.07.20"]
[WhiteElo "2690"]
[BlackElo "2728"]
[PlyCount "105"]
[TimeControl "60"]

{[%evp 10,105,17,7,21,10,0,-11,20,19,33,23,37,33,31,28,32,33,39,13,30,25,27,29,35,23,64,62,121,115,254,244,256,252,251,243,217,134,229,154,153,158,150,150,141,146,143,106,108,110,157,163,148,135,145,155,233,233,233,233,239,233,282,252,339,261,583,539,518,466,587,562,546,519,949,943,1060,1070,1049,1083,807,666,1456,1380,29998,2068,2209,1996,29962,29953,29983,29984,29984,29985,29985,29986,29985,29984]} 1. Nf3 {[%emt 0:0:3]} d5 {[%emt 0:0:11]} 2. g3 {[%emt 0:0:4]} g6 {[%emt 0:1:24]} 3. Bg2 {[%emt 0:0:5]} Bg7 {[%emt 0:0:10]} 4. d4 {[%emt 0:0:5]} c6 {[%emt 0:0:40]} 5. O-O {[%emt 0:0:37]} Nf6 {[%emt 0:0:12][%cal Bg8f6,Bf6e4,Be4c3][%mdl 32]} 6. c4 {[%emt 0:0:58]} dxc4 {[%emt 0:0:16] D73: Fianchetto Grünfeld: 5 Nf3 .} 7. a4 {[%emt 0:0:46]} Ne4 {[%emt 0:1:42]} 8. Nc3 {[%emt 0:0:44]} Nxc3 {[%emt 0:1:21] The position is equal.} 9. bxc3 {[%emt 0:0:4]} O-O {[%emt 0:0:41][%cal Oc6c5]} 10. a5 {[%emt 0:1:36]} c5 {[%emt 0:5:17]} 11. Qa4 {[%emt 0:1:51]} Nc6 {[%emt 0:7:13][%cal Rc5d4] [#]} 12. Rd1 $146 {[%emt 0:1:32]} ({Predecessor:} 12. a6 cxd4 13. Nxd4 Nxd4 14. cxd4 Rb8 15. Rb1 b5 16. Rxb5 Bd7 17. Rxb8 Bxa4 18. Rxd8 Rxd8 {½-½ Aditya,M (2438)-Ohanyan,E (2324) Paracin Orbis GM 3rd 2021 (3)} )cxd4 {[%emt 0:2:30]} 13. Nxd4 {[%emt 0:1:55]} Nxd4 {[%emt 0:0:25]} 14. cxd4 {[%emt 0:0:4]} Bg4 {[%emt 0:8:58]} (14... Bxd4 15. Bh6 Bd7 16. Qa2 $18 )15. Ra2 {[%emt 0:7:39]} Rc8 {[%emt 0:2:38]} 16. Bxb7 {[%emt 0:5:52]} Rc7 {[%emt 0:0:10]} 17. a6 {[%emt 0:5:25] Threatens to win with Bf4.} c3 {[%emt 0:0:13]} 18. Bf4 {[%emt 0:7:15]} Rd7 {[%emt 0:4:1]} (18... Bd7 $1 $14 19. Qb3 (19. Bxc7 Bxa4 20. Bxd8 Bxd1 $17 )e5 20. dxe5 (20. Bxe5 Bxe5 21. dxe5 Qe7 $11 )Qe7 )19. d5 $16 {[%emt 0:5:7] aiming for Be3.} Bf5 {[%emt 0:7:34] [#]} (19... Bh3 $16 20. Bc6 Rd6 )20. Be3 $1 $18 {[%emt 0:10:21]} c2 {[%emt 0:16:42]} 21. Rxc2 {[%emt 0:9:17]} Bxc2 {[%emt 0:1:20]} 22. Qxc2 {[%emt 0:0:3]} Qa5 {[%emt 0:0:15] Black is weak on the light squares} 23. Qb3 {[%emt 0:18:2]} ({Weaker is} 23. Bxa7 Rxb7 24. axb7 Qxa7 $11 )Rd6 {[%emt 0:4:51]} (23... Rb8 $16 )24. Qc4 {[%emt 0:10:55] Rb1 is the strong threat.} ({Don't do} 24. Bxa7 $6 Rxa6 25. Bxa6 Qxa6 $16 )Rb6 {[%emt 0:2:16] Prevents Rb1.} 25. Bxb6 {[%emt 0:0:21]} Qxb6 {[%emt 0:0:9]} 26. Qe4 {[%emt 0:1:7] Prevents Be5} Qc5 {[%emt 0:2:19]} 27. Kg2 {[%emt 0:1:22] White is more active.} Bf6 {[%emt 0:1:42]} 28. Rd2 {[%emt 0:1:52][%cal Bd1d2,Bd2c2,Bc2c4][%mdl 32]} Rd8 {[%emt 0:0:40]} 29. Rc2 {[%emt 0:1:24]} Qd4 {[%emt 0:2:3]} (29... Qa3 $142 30. Qf4 Kg7 )30. Qxd4 $16 {[%emt 0:7:5]} Bxd4 {[%emt 0:2:20][%mdl 4096] Endgame KRB-KRB} 31. e4 {[%emt 0:0:19][%cal Be2e4,Be4e5][%mdl 32]} e6 {[%emt 0:6:14]} 32. Rc4 {[%emt 0:3:55]} Be5 {[%emt 0:4:14] [#]} (32... e5 $16 {might work better.} 33. f4 Kf8 )33. dxe6 $1 $18 {[%emt 0:0:25]} fxe6 {[%emt 0:0:7]} 34. f4 {[%emt 0:0:9]} Rd2+ {[%emt 0:0:9]} 35. Kf3 {[%emt 0:0:40]} Bd4 {[%emt 0:1:27]} 36. e5 {[%emt 0:0:34]} Bg1 {[%emt 0:1:30]} 37. Bc8 {[%emt 0:3:33] Wards off Rd7} Rxh2 $2 {[%emt 0:1:37]} (37... Bb6 {is more resistant.} 38. Bxe6+ Kf8 )38. Bxe6+ {[%emt 0:0:15]} Kf8 {[%emt 0:0:2]} 39. Rc7 {[%emt 0:2:37]} Ke8 {[%emt 0:7:54]} 40. Rb7 {[%emt 0:0:0]} Kd8 {[%emt 0:0:0]} 41. Bg8 {[%emt 0:10:36]} h5 {[%emt 0:3:9]} (41... Rc2 $142 42. Bxh7 Rc6 )42. Bf7 {[%emt 0:0:21]} Rf2+ {[%emt 0:2:29]} 43. Ke4 {[%emt 0:0:3]} Re2+ {[%emt 0:6:31]} 44. Kd5 {[%emt 0:0:46] Kd6 would kill now.} Rd2+ {[%emt 0:0:18]} 45. Kc6 {[%emt 0:3:7]} Rd3 {[%emt 0:7:59]} 46. Bxg6 {[%emt 0:0:45] White threatens Rb8+ and mate.} Rxg3 {[%emt 0:0:38]} 47. f5 {[%emt 0:1:2]} (47. Rb8+ $142 Ke7 48. Re8# )Rc3+ {[%emt 0:0:36]} 48. Kd5 {[%emt 0:1:30][%cal Of5f6] Threatening mate with f6!} Rd3+ {[%emt 0:4:18]} 49. Ke6 {[%emt 0:0:23] White mates.} h4 {[%emt 0:1:23]} 50. f6 {[%emt 0:0:55]} Ra3 {[%emt 0:0:13]} 51. Kf7 {[%emt 0:0:32]} Rxa6 {[%emt 0:1:31]} 52. e6 {[%emt 0:0:5]} Kc8 {[%emt 0:0:9]} 53. Rb4 {[%emt 0:0:22] Weighted Error Value: White=0.10 (very precise) /Black=0.64} 1-0